[Event "*** Titled Tuesday Blitz"]
[Site "Chess.com"]
[Date "2019.02.05"]
[Round "8"]
[White "HomayoonTofighi"]
[Black "OparinGrigoriy"]
[Result "1-0"]
[WhiteElo "2762"]
[BlackElo "2907"]
[TimeControl "180+2"]
[EndTime "14:57:34 PST"]
[Termination "HomayoonTofighi won by resignation"]

1. d4 {[%clk 0:03:01.6]} 1... Nf6 {[%clk 0:03:01]} 2. Nf3 {[%clk 0:03:01.3]}
2... e6 {[%clk 0:03:02]} 3. g3 {[%clk 0:02:57.4]} 3... b6 {[%clk 0:03:02.4]} 4.
Bg2 {[%clk 0:02:58.7]} 4... Bb7 {[%clk 0:03:04.3]} 5. O-O {[%clk 0:02:58.7]}
5... Be7 {[%clk 0:03:05.9]} 6. c4 {[%clk 0:02:58.9]} 6... O-O {[%clk 0:03:06.7]}
7. Nc3 {[%clk 0:02:52.8]} 7... Ne4 {[%clk 0:03:07.6]} 8. Qc2 {[%clk 0:02:53.2]}
8... Nxc3 {[%clk 0:03:07.5]} 9. Qxc3 {[%clk 0:02:53.9]} 9... d6 {[%clk
0:03:08.8]} 10. Qc2 {[%clk 0:02:44.3]} 10... Nd7 {[%clk 0:03:06.3]} 11. Ng5
{[%clk 0:02:42.8]} 11... Bxg5 {[%clk 0:03:07.2]} 12. Bxb7 {[%clk 0:02:43.9]}
12... Rb8 {[%clk 0:03:07.5]} 13. Bc6 {[%clk 0:02:37.7]} 13... Bxc1 {[%clk
0:03:08.4]} 14. Raxc1 {[%clk 0:02:36.8]} 14... Nf6 {[%clk 0:03:10]} 15. e3
{[%clk 0:02:32.7]} 15... a5 {[%clk 0:03:10]} 16. a3 {[%clk 0:02:29.3]} 16... Qe7
{[%clk 0:03:08.8]} 17. b4 {[%clk 0:02:27.9]} 17... axb4 {[%clk 0:03:07.7]} 18.
axb4 {[%clk 0:02:29.6]} 18... e5 {[%clk 0:03:09.6]} 19. b5 {[%clk 0:02:16.1]}
19... h5 {[%clk 0:03:10.1]} 20. Kg2 {[%clk 0:02:12.9]} 20... g6 {[%clk
0:03:11.3]} 21. Ra1 {[%clk 0:02:04.3]} 21... h4 {[%clk 0:03:12.2]} 22. Ra7
{[%clk 0:01:59.9]} 22... Kg7 {[%clk 0:03:13.3]} 23. Qc3 {[%clk 0:01:53.9]} 23...
Rh8 {[%clk 0:03:13.2]} 24. h3 {[%clk 0:01:48.3]} 24... hxg3 {[%clk 0:03:10.8]}
25. fxg3 {[%clk 0:01:50.2]} 25... Qe6 {[%clk 0:03:10.6]} 26. h4 {[%clk
0:01:48.2]} 26... Qe7 {[%clk 0:02:34.9]} 27. Ra2 {[%clk 0:01:45.6]} 27... Nh5
{[%clk 0:02:28.9]} 28. dxe5 {[%clk 0:01:43.2]} 28... dxe5 {[%clk 0:02:29.4]} 29.
Raf2 {[%clk 0:01:41.3]} 29... f5 {[%clk 0:02:24.9]} 30. e4 {[%clk 0:01:42.2]}
30... f4 {[%clk 0:01:59.5]} 31. gxf4 {[%clk 0:01:42.3]} 31... Qxh4 {[%clk
0:02:01]} 32. Qxe5+ {[%clk 0:01:42.5]} 32... Kh7 {[%clk 0:02:02.3]} 33. f5
{[%clk 0:01:33.1]} 33... Qg4+ {[%clk 0:02:01.7]} 34. Kh2 {[%clk 0:01:31.2]}
34... Kh6 {[%clk 0:00:20.9]} 35. Rg1 {[%clk 0:01:21.7]} 35... Qh4+ {[%clk
0:00:21.5]} 36. Kg2 {[%clk 0:01:22.3]} 36... Qg4+ {[%clk 0:00:22.6]} 37. Kf1
{[%clk 0:01:18.7]} 37... Qd1+ {[%clk 0:00:23.3]} 38. Kg2 {[%clk 0:01:20]} 38...
Qg4+ {[%clk 0:00:17]} 39. Kh1 {[%clk 0:01:21.5]} 39... Qh3+ {[%clk 0:00:18.2]}
40. Qh2 {[%clk 0:01:19.9]} 40... Qxh2+ {[%clk 0:00:14.4]} 41. Rxh2 {[%clk
0:01:20.9]} 41... Rbg8 {[%clk 0:00:11.1]} 42. f6 {[%clk 0:01:19.4]} 42... Rf8
{[%clk 0:00:04.5]} 43. e5 {[%clk 0:01:20.6]} 43... Rf7 {[%clk 0:00:05]} 44. Be4
{[%clk 0:01:20.4]} 44... Rg8 {[%clk 0:00:05.2]} 45. Bd5 {[%clk 0:01:18.6]} 45...
Rgf8 {[%clk 0:00:06.3]} 46. Bxf7 {[%clk 0:01:19.1]} 46... Rxf7 {[%clk
0:00:08.2]} 47. Rh4 {[%clk 0:01:17.4]} 47... Kh7 {[%clk 0:00:08.9]} 48. Kg2
{[%clk 0:01:17.2]} 48... Rd7 {[%clk 0:00:10.2]} 49. Kf3 {[%clk 0:01:18.1]} 49...
Rd3+ {[%clk 0:00:11.6]} 50. Ke4 {[%clk 0:01:19.4]} 50... Rc3 {[%clk 0:00:12.7]}
51. Rxh5+ {[%clk 0:01:20.9]} 51... gxh5 {[%clk 0:00:12.5]} 52. f7 {[%clk
0:01:22.5]} 1-0

[Event "*** Titled Tuesday Blitz"]
[Site "Chess.com"]
[Date "2019.02.05"]
[Round "8"]
[White "kacprekt"]
[Black "wenx95"]
[Result "0-1"]
[WhiteElo "2297"]
[BlackElo "2514"]
[TimeControl "180+2"]
[EndTime "14:57:38 PST"]
[Termination "wenx95 won on time"]

1. d4 {[%clk 0:03:01.9]} 1... Nf6 {[%clk 0:02:59.4]} 2. c4 {[%clk 0:03:03]} 2...
Nc6 {[%clk 0:03:00.5]} 3. Nf3 {[%clk 0:03:03.2]} 3... e6 {[%clk 0:03:01.6]} 4.
Nc3 {[%clk 0:02:57.8]} 4... Bb4 {[%clk 0:03:01.5]} 5. Qc2 {[%clk 0:02:57]} 5...
d6 {[%clk 0:03:00.9]} 6. a3 {[%clk 0:02:56.4]} 6... Bxc3+ {[%clk 0:02:58.5]} 7.
Qxc3 {[%clk 0:02:58.3]} 7... a5 {[%clk 0:02:58.5]} 8. e3 {[%clk 0:02:55.7]} 8...
a4 {[%clk 0:02:58.8]} 9. Bd3 {[%clk 0:02:54.5]} 9... Qe7 {[%clk 0:02:59.7]} 10.
O-O {[%clk 0:02:54.4]} 10... e5 {[%clk 0:03:00.7]} 11. Bc2 {[%clk 0:02:50.4]}
11... O-O {[%clk 0:02:58.8]} 12. Rd1 {[%clk 0:02:29.5]} 12... Bg4 {[%clk
0:02:57.6]} 13. d5 {[%clk 0:02:29.4]} 13... Nb8 {[%clk 0:02:38.6]} 14. e4 {[%clk
0:02:20.5]} 14... Nbd7 {[%clk 0:02:32.1]} 15. h3 {[%clk 0:02:21.5]} 15... Bxf3
{[%clk 0:02:30.8]} 16. Qxf3 {[%clk 0:02:22.1]} 16... Nc5 {[%clk 0:02:31]} 17. g4
{[%clk 0:02:21]} 17... c6 {[%clk 0:02:14.5]} 18. Be3 {[%clk 0:02:17.7]} 18...
cxd5 {[%clk 0:02:08]} 19. Bxc5 {[%clk 0:02:06.4]} 19... dxc5 {[%clk 0:02:03.9]}
20. exd5 {[%clk 0:02:05]} 20... Ne8 {[%clk 0:01:56.4]} 21. Qe4 {[%clk
0:02:02.3]} 21... g6 {[%clk 0:01:51.8]} 22. f4 {[%clk 0:02:02.4]} 22... f6
{[%clk 0:01:46.7]} 23. fxe5 {[%clk 0:01:50.8]} 23... fxe5 {[%clk 0:01:44.1]} 24.
Re1 {[%clk 0:01:46.5]} 24... Nd6 {[%clk 0:01:22.3]} 25. Qxe5 {[%clk 0:01:40.1]}
25... Qxe5 {[%clk 0:01:21.6]} 26. Rxe5 {[%clk 0:01:40.6]} 26... Nxc4 {[%clk
0:01:23]} 27. Re7 {[%clk 0:01:39.5]} 27... Rf7 {[%clk 0:01:19.1]} 28. Rae1
{[%clk 0:01:33]} 28... Kf8 {[%clk 0:00:36.7]} 29. R7e2 {[%clk 0:01:00.7]} 29...
b5 {[%clk 0:00:21.5]} 30. Bd3 {[%clk 0:00:58.5]} 30... Nd6 {[%clk 0:00:22.3]}
31. Re6 {[%clk 0:00:54.4]} 31... Rd8 {[%clk 0:00:22.9]} 32. R1e5 {[%clk
0:00:40.6]} 32... Rf3 {[%clk 0:00:20.1]} 33. Be2 {[%clk 0:00:28.2]} 33... Rb3
{[%clk 0:00:14]} 34. Rf6+ {[%clk 0:00:29]} 34... Kg7 {[%clk 0:00:14.5]} 35. g5
{[%clk 0:00:30.4]} 35... Rxb2 {[%clk 0:00:11.4]} 36. Re7+ {[%clk 0:00:31.3]}
36... Kh8 {[%clk 0:00:11.6]} 37. Bg4 {[%clk 0:00:26.8]} 37... b4 {[%clk
0:00:11.6]} 38. Bd7 {[%clk 0:00:10.8]} 38... bxa3 {[%clk 0:00:10.5]} 39. Rxd6
{[%clk 0:00:10.7]} 39... a2 {[%clk 0:00:11.9]} 40. Re1 {[%clk 0:00:05.3]} 40...
Rb1 {[%clk 0:00:13.1]} 41. Re6 {[%clk 0:00:04.8]} 41... a1=Q {[%clk 0:00:12.8]}
0-1

[Event "*** Titled Tuesday Blitz"]
[Site "Chess.com"]
[Date "2019.02.05"]
[Round "8"]
[White "m3alam"]
[Black "KlyashtornyVladislav"]
[Result "0-1"]
[WhiteElo "2149"]
[BlackElo "2206"]
[TimeControl "180+2"]
[EndTime "14:57:44 PST"]
[Termination "KlyashtornyVladislav won by resignation"]

1. d4 {[%clk 0:03:01.9]} 1... d5 {[%clk 0:02:59.8]} 2. Nf3 {[%clk 0:03:02.7]}
2... Nf6 {[%clk 0:02:59.8]} 3. g3 {[%clk 0:03:01.5]} 3... Bf5 {[%clk 0:02:54.1]}
4. Bg2 {[%clk 0:03:03.4]} 4... e6 {[%clk 0:02:54.8]} 5. O-O {[%clk 0:03:04.3]}
5... Nbd7 {[%clk 0:02:51.7]} 6. c4 {[%clk 0:03:05.2]} 6... c6 {[%clk 0:02:52.4]}
7. Nc3 {[%clk 0:03:06.3]} 7... h6 {[%clk 0:02:51.9]} 8. Bf4 {[%clk 0:02:59.1]}
8... Be7 {[%clk 0:02:47.6]} 9. Qb3 {[%clk 0:02:56.9]} 9... Qb6 {[%clk
0:02:46.8]} 10. Rfc1 {[%clk 0:02:58]} 10... O-O {[%clk 0:02:45.2]} 11. Ne5
{[%clk 0:02:56.9]} 11... Qxb3 {[%clk 0:02:27.9]} 12. axb3 {[%clk 0:02:57.1]}
12... Rfd8 {[%clk 0:02:16.2]} 13. Nxd7 {[%clk 0:02:38.4]} 13... Rxd7 {[%clk
0:02:12.7]} 14. c5 {[%clk 0:02:35]} 14... a6 {[%clk 0:01:58]} 15. b4 {[%clk
0:02:35.7]} 15... Re8 {[%clk 0:01:49.1]} 16. Na4 {[%clk 0:02:35.7]} 16... Bd8
{[%clk 0:01:48.3]} 17. h3 {[%clk 0:02:22.5]} 17... Bc7 {[%clk 0:01:32.7]} 18.
Nb6 {[%clk 0:02:15.6]} 18... Bxf4 {[%clk 0:00:39.9]} 19. gxf4 {[%clk 0:02:14.3]}
19... Rdd8 {[%clk 0:00:38.7]} 20. e3 {[%clk 0:02:13.9]} 20... Nd7 {[%clk
0:00:37.7]} 21. Na4 {[%clk 0:02:03.7]} 21... f6 {[%clk 0:00:38.3]} 22. Re1
{[%clk 0:01:49.8]} 22... e5 {[%clk 0:00:39]} 23. fxe5 {[%clk 0:01:49.2]} 23...
fxe5 {[%clk 0:00:40]} 24. Nc3 {[%clk 0:01:48.6]} 24... e4 {[%clk 0:00:30.1]} 25.
Kh2 {[%clk 0:01:43.9]} 25... Rf8 {[%clk 0:00:30.3]} 26. f4 {[%clk 0:01:38.3]}
26... exf3 {[%clk 0:00:30.4]} 27. Bxf3 {[%clk 0:01:38.8]} 27... Nf6 {[%clk
0:00:28.8]} 28. Rf1 {[%clk 0:01:21.3]} 28... Rde8 {[%clk 0:00:27.1]} 29. Rae1
{[%clk 0:01:22.6]} 29... Re7 {[%clk 0:00:24.5]} 30. Bg2 {[%clk 0:01:17.5]} 30...
Bd3 {[%clk 0:00:23]} 31. Rf4 {[%clk 0:01:10.1]} 31... g5 {[%clk 0:00:21.4]} 32.
Rf2 {[%clk 0:01:07.4]} 32... Ne4 {[%clk 0:00:21.5]} 33. Rxf8+ {[%clk 0:01:03.9]}
33... Kxf8 {[%clk 0:00:22.5]} 34. Bf1 {[%clk 0:00:44.3]} 34... Bxf1 {[%clk
0:00:19]} 35. Rxf1+ {[%clk 0:00:44.7]} 35... Kg7 {[%clk 0:00:20.5]} 36. Rf5
{[%clk 0:00:34.5]} 36... Nd2 {[%clk 0:00:16.6]} 37. e4 {[%clk 0:00:28.1]} 37...
dxe4 {[%clk 0:00:15.2]} 38. d5 {[%clk 0:00:28.4]} 38... cxd5 {[%clk 0:00:13.2]}
39. Nxd5 {[%clk 0:00:29]} 39... Rd7 {[%clk 0:00:11.6]} 40. Kg2 {[%clk 0:00:27]}
40... Nc4 {[%clk 0:00:10]} 41. b3 {[%clk 0:00:25.7]} 41... Rxd5 {[%clk
0:00:10.6]} 0-1

[Event "*** Titled Tuesday Blitz"]
[Site "Chess.com"]
[Date "2019.02.05"]
[Round "8"]
[White "Maikrosoft63"]
[Black "26andrej26"]
[Result "1-0"]
[WhiteElo "2566"]
[BlackElo "2422"]
[TimeControl "180+2"]
[EndTime "14:57:50 PST"]
[Termination "Maikrosoft63 won by checkmate"]

1. e4 {[%clk 0:03:01.9]} 1... c5 {[%clk 0:03:00.9]} 2. Nf3 {[%clk 0:03:02.8]}
2... d6 {[%clk 0:03:02.5]} 3. d4 {[%clk 0:03:03.8]} 3... cxd4 {[%clk 0:03:04.4]}
4. Nxd4 {[%clk 0:03:05.7]} 4... Nf6 {[%clk 0:03:06]} 5. Nc3 {[%clk 0:03:07.2]}
5... a6 {[%clk 0:03:07.9]} 6. Be3 {[%clk 0:03:08.5]} 6... e5 {[%clk 0:03:08.4]}
7. Nb3 {[%clk 0:03:09.9]} 7... Be6 {[%clk 0:03:10.1]} 8. Qd2 {[%clk 0:03:11.4]}
8... Nbd7 {[%clk 0:03:10.7]} 9. O-O-O {[%clk 0:03:12.8]} 9... Rc8 {[%clk
0:03:11.9]} 10. f4 {[%clk 0:03:13.9]} 10... Be7 {[%clk 0:03:12.2]} 11. f5 {[%clk
0:03:14.8]} 11... Bc4 {[%clk 0:03:13.3]} 12. g4 {[%clk 0:03:15.2]} 12... Nxg4
{[%clk 0:03:13.2]} 13. Rg1 {[%clk 0:03:16.3]} 13... Nxe3 {[%clk 0:03:12.6]} 14.
Qxe3 {[%clk 0:03:18.2]} 14... g6 {[%clk 0:02:52.9]} 15. Bxc4 {[%clk 0:03:15.7]}
15... Rxc4 {[%clk 0:02:53.2]} 16. Nd5 {[%clk 0:03:16.9]} 16... Nf6 {[%clk
0:02:41.8]} 17. Nxf6+ {[%clk 0:03:08.5]} 17... Bxf6 {[%clk 0:02:43.7]} 18. Qd3
{[%clk 0:03:04.4]} 18... Rc6 {[%clk 0:02:42.1]} 19. Kb1 {[%clk 0:03:01.5]} 19...
Bg5 {[%clk 0:01:58.2]} 20. Qd5 {[%clk 0:02:46.4]} 20... Bf4 {[%clk 0:01:53.7]}
21. h3 {[%clk 0:02:37.5]} 21... Qc7 {[%clk 0:01:53.3]} 22. c3 {[%clk 0:02:30.2]}
22... a5 {[%clk 0:01:26.1]} 23. Qxa5 {[%clk 0:02:15.5]} 23... Ke7 {[%clk
0:01:02.4]} 24. Qd5 {[%clk 0:02:05.2]} 24... Ra8 {[%clk 0:01:01.5]} 25. h4
{[%clk 0:01:49.3]} 25... Rca6 {[%clk 0:00:59.3]} 26. fxg6 {[%clk 0:01:43.9]}
26... hxg6 {[%clk 0:00:58.3]} 27. a3 {[%clk 0:01:36.6]} 27... Qc6 {[%clk
0:00:49.9]} 28. Qd3 {[%clk 0:01:10.2]} 28... Ra4 {[%clk 0:00:46]} 29. Rge1
{[%clk 0:01:11.1]} 29... Qb6 {[%clk 0:00:38.5]} 30. Ka2 {[%clk 0:01:07.8]} 30...
Qc6 {[%clk 0:00:31]} 31. Re2 {[%clk 0:00:54.9]} 31... b5 {[%clk 0:00:30.9]} 32.
Na1 {[%clk 0:00:49.1]} 32... b4 {[%clk 0:00:12.1]} 33. cxb4 {[%clk 0:00:45.3]}
33... Rxb4 {[%clk 0:00:13.6]} 34. Rc2 {[%clk 0:00:31.6]} 34... Qb6 {[%clk
0:00:11.3]} 35. Qc3 {[%clk 0:00:23.3]} 35... Rxe4 {[%clk 0:00:08.4]} 36. Nb3
{[%clk 0:00:22.1]} 36... Ra7 {[%clk 0:00:07.4]} 37. h5 {[%clk 0:00:12.7]} 37...
Re3 {[%clk 0:00:07.3]} 38. Qc4 {[%clk 0:00:12.7]} 38... gxh5 {[%clk 0:00:05.4]}
39. Qd5 {[%clk 0:00:10.9]} 39... Rb7 {[%clk 0:00:06.1]} 40. Nd2 {[%clk
0:00:08.4]} 40... Re2 {[%clk 0:00:03.2]} 41. Nc4 {[%clk 0:00:09.7]} 41... Qb3+
{[%clk 0:00:03.6]} 42. Ka1 {[%clk 0:00:10.6]} 42... Qxc2 {[%clk 0:00:04.6]} 43.
Qxd6+ {[%clk 0:00:11.1]} 43... Ke8 {[%clk 0:00:04]} 44. Qd8# {[%clk 0:00:13]}
1-0

[Event "*** Titled Tuesday Blitz"]
[Site "Chess.com"]
[Date "2019.02.05"]
[Round "8"]
[White "King_of_the_wing"]
[Black "HajiyevKanan"]
[Result "0-1"]
[WhiteElo "2184"]
[BlackElo "2334"]
[TimeControl "180+2"]
[EndTime "14:57:50 PST"]
[Termination "HajiyevKanan won on time"]

1. e4 {[%clk 0:03:01.9]} 1... c6 {[%clk 0:03:00.8]} 2. d4 {[%clk 0:03:01.8]}
2... d5 {[%clk 0:03:02.7]} 3. f3 {[%clk 0:03:02]} 3... a6 {[%clk 0:03:02.8]} 4.
Nc3 {[%clk 0:03:01.8]} 4... b5 {[%clk 0:03:00.3]} 5. e5 {[%clk 0:02:57.7]} 5...
h5 {[%clk 0:02:55.9]} 6. Be3 {[%clk 0:02:52.7]} 6... h4 {[%clk 0:02:54.7]} 7.
Bd3 {[%clk 0:02:49.5]} 7... Nh6 {[%clk 0:02:46.2]} 8. Qd2 {[%clk 0:02:34.5]}
8... Nf5 {[%clk 0:02:40.5]} 9. f4 {[%clk 0:02:14.8]} 9... Qb6 {[%clk 0:02:32.1]}
10. Nf3 {[%clk 0:02:09.6]} 10... h3 {[%clk 0:02:29.5]} 11. g3 {[%clk 0:02:05.7]}
11... g6 {[%clk 0:02:15.6]} 12. O-O {[%clk 0:01:52.3]} 12... Bg7 {[%clk
0:02:07.7]} 13. Ne2 {[%clk 0:01:36.4]} 13... Be6 {[%clk 0:01:50.4]} 14. Ng5
{[%clk 0:01:23.3]} 14... Bc8 {[%clk 0:01:50.8]} 15. c3 {[%clk 0:01:04.7]} 15...
a5 {[%clk 0:01:40.8]} 16. a3 {[%clk 0:00:55.8]} 16... a4 {[%clk 0:01:31.2]} 17.
Bf2 {[%clk 0:00:53.5]} 17... Nh6 {[%clk 0:01:24.2]} 18. f5 {[%clk 0:00:33.3]}
18... Bxf5 {[%clk 0:01:21.3]} 19. Nf4 {[%clk 0:00:27.9]} 19... Na6 {[%clk
0:00:30.8]} 20. Bxf5 {[%clk 0:00:22.8]} 20... gxf5 {[%clk 0:00:26.3]} 21. Ngxh3
{[%clk 0:00:19.4]} 21... e6 {[%clk 0:00:25.6]} 22. Nh5 {[%clk 0:00:17.5]} 22...
Bf8 {[%clk 0:00:22.8]} 23. Nf6+ {[%clk 0:00:18]} 23... Kd8 {[%clk 0:00:24.3]}
24. Nf4 {[%clk 0:00:13.6]} 24... Be7 {[%clk 0:00:21.6]} 25. N4h5 {[%clk
0:00:13.3]} 25... Ng4 {[%clk 0:00:19.5]} 26. Nxg4 {[%clk 0:00:12.6]} 26... Rxh5
{[%clk 0:00:20.6]} 27. Ne3 {[%clk 0:00:08.8]} 27... Bg5 {[%clk 0:00:20.1]} 28.
Qe2 {[%clk 0:00:08.9]} 28... Rh7 {[%clk 0:00:15.4]} 29. h4 {[%clk 0:00:10.2]}
29... Be7 {[%clk 0:00:13.1]} 30. Kg2 {[%clk 0:00:10.6]} 30... Kd7 {[%clk
0:00:13.6]} 31. Rh1 {[%clk 0:00:11.4]} 31... Rg8 {[%clk 0:00:14.5]} 32. Qf3
{[%clk 0:00:11.3]} 32... Nc7 {[%clk 0:00:09.8]} 33. Qf4 {[%clk 0:00:06.5]} 33...
Ne8 {[%clk 0:00:10.1]} 34. Nxf5 {[%clk 0:00:05.7]} 34... Bf8 {[%clk 0:00:06.8]}
35. Ne3 {[%clk 0:00:03.6]} 35... Qd8 {[%clk 0:00:05.4]} 36. h5 {[%clk
0:00:03.5]} 36... Qe7 {[%clk 0:00:06.4]} 37. g4 {[%clk 0:00:03.6]} 37... Bh6
{[%clk 0:00:07.4]} 38. Qf3 {[%clk 0:00:03.7]} 38... Qg5 {[%clk 0:00:06.4]} 0-1

[Event "*** Titled Tuesday Blitz"]
[Site "Chess.com"]
[Date "2019.02.05"]
[Round "8"]
[White "wonderfultime"]
[Black "Zufi1811"]
[Result "1-0"]
[WhiteElo "2871"]
[BlackElo "2358"]
[TimeControl "180+2"]
[EndTime "14:57:53 PST"]
[Termination "wonderfultime won on time"]

1. d4 {[%clk 0:03:01.9]} 1... d5 {[%clk 0:02:59.2]} 2. Nf3 {[%clk 0:03:01.6]}
2... Nf6 {[%clk 0:02:58.2]} 3. Bf4 {[%clk 0:03:02.8]} 3... e6 {[%clk 0:02:58.9]}
4. e3 {[%clk 0:03:04.1]} 4... Bd6 {[%clk 0:03:00.1]} 5. Bg3 {[%clk 0:03:05.5]}
5... c5 {[%clk 0:03:00.5]} 6. c3 {[%clk 0:03:06.6]} 6... Qc7 {[%clk 0:03:01.1]}
7. Nbd2 {[%clk 0:03:07]} 7... Nbd7 {[%clk 0:03:02]} 8. Bb5 {[%clk 0:02:23.6]}
8... O-O {[%clk 0:03:01.3]} 9. O-O {[%clk 0:02:18.4]} 9... Bxg3 {[%clk
0:02:53.7]} 10. hxg3 {[%clk 0:02:19.1]} 10... e5 {[%clk 0:02:51.8]} 11. Bxd7
{[%clk 0:02:20]} 11... Nxd7 {[%clk 0:02:51.7]} 12. dxe5 {[%clk 0:02:18.7]} 12...
Nxe5 {[%clk 0:02:52.2]} 13. Nxe5 {[%clk 0:02:19.8]} 13... Qxe5 {[%clk
0:02:53.8]} 14. Nf3 {[%clk 0:02:19.8]} 14... Qe6 {[%clk 0:02:43.1]} 15. Qa4
{[%clk 0:02:17.6]} 15... h6 {[%clk 0:02:36]} 16. Rfd1 {[%clk 0:02:18.1]} 16...
Bd7 {[%clk 0:02:25.9]} 17. Qa3 {[%clk 0:02:18.8]} 17... b6 {[%clk 0:02:24.9]}
18. Rd2 {[%clk 0:02:20.4]} 18... Bc6 {[%clk 0:02:13.7]} 19. Rad1 {[%clk
0:02:21.5]} 19... a5 {[%clk 0:02:10.5]} 20. Ne1 {[%clk 0:02:22.5]} 20... Rfd8
{[%clk 0:01:57.9]} 21. Nd3 {[%clk 0:02:22.2]} 21... Rd7 {[%clk 0:01:50.7]} 22.
Nf4 {[%clk 0:02:21]} 22... Qe4 {[%clk 0:01:44]} 23. Rd3 {[%clk 0:01:22.1]} 23...
Rad8 {[%clk 0:01:24.6]} 24. b3 {[%clk 0:00:54.3]} 24... Kh7 {[%clk 0:01:07.1]}
25. Qb2 {[%clk 0:00:51.6]} 25... f6 {[%clk 0:00:54.8]} 26. a3 {[%clk 0:00:46.3]}
26... g5 {[%clk 0:00:48.2]} 27. Ne2 {[%clk 0:00:46.7]} 27... Kg7 {[%clk
0:00:39.6]} 28. f3 {[%clk 0:00:44.5]} 28... Qe5 {[%clk 0:00:40]} 29. Qc2 {[%clk
0:00:35]} 29... Bb5 {[%clk 0:00:35]} 30. c4 {[%clk 0:00:36.4]} 30... dxc4 {[%clk
0:00:35.1]} 31. bxc4 {[%clk 0:00:38.3]} 31... Bc6 {[%clk 0:00:24.6]} 32. g4
{[%clk 0:00:37.1]} 32... Rd6 {[%clk 0:00:10.4]} 33. Kf2 {[%clk 0:00:35.9]} 33...
Be8 {[%clk 0:00:10]} 34. Rxd6 {[%clk 0:00:12.1]} 34... Rxd6 {[%clk 0:00:11.9]}
35. Rxd6 {[%clk 0:00:07.5]} 35... Qxd6 {[%clk 0:00:13.8]} 36. Qc3 {[%clk
0:00:08.4]} 36... Bg6 {[%clk 0:00:10.2]} 37. Qb2 {[%clk 0:00:09.7]} 37... h5
{[%clk 0:00:09.3]} 38. gxh5 {[%clk 0:00:09.9]} 38... Bxh5 {[%clk 0:00:11.2]} 39.
Nc3 {[%clk 0:00:11.3]} 39... Bf7 {[%clk 0:00:07.8]} 40. Ne4 {[%clk 0:00:10.2]}
40... Qe6 {[%clk 0:00:06]} 41. g4 {[%clk 0:00:05.5]} 1-0

[Event "*** Titled Tuesday Blitz"]
[Site "Chess.com"]
[Date "2019.02.05"]
[Round "8"]
[White "Ginger_GM"]
[Black "maciek_92"]
[Result "0-1"]
[WhiteElo "2603"]
[BlackElo "2757"]
[TimeControl "180+2"]
[EndTime "14:58:09 PST"]
[Termination "maciek_92 won by resignation"]

1. d4 {[%clk 0:03:01.9]} 1... Nf6 {[%clk 0:03:00.7]} 2. c4 {[%clk 0:02:58]} 2...
e6 {[%clk 0:03:01.5]} 3. Nf3 {[%clk 0:02:59]} 3... c5 {[%clk 0:03:02.3]} 4. e3
{[%clk 0:02:56.4]} 4... cxd4 {[%clk 0:02:48]} 5. exd4 {[%clk 0:02:56]} 5... b6
{[%clk 0:02:48.1]} 6. Nc3 {[%clk 0:02:54.1]} 6... Bb4 {[%clk 0:02:48.3]} 7. Bg5
{[%clk 0:02:52.6]} 7... h6 {[%clk 0:02:48.6]} 8. Bh4 {[%clk 0:02:53.6]} 8... Bb7
{[%clk 0:02:48.9]} 9. Be2 {[%clk 0:02:53]} 9... Nc6 {[%clk 0:02:47.3]} 10. O-O
{[%clk 0:02:50]} 10... Ne7 {[%clk 0:02:48.8]} 11. Bxf6 {[%clk 0:02:38]} 11...
gxf6 {[%clk 0:02:49.1]} 12. d5 {[%clk 0:02:37.4]} 12... Bxc3 {[%clk 0:02:49.4]}
13. bxc3 {[%clk 0:02:37.9]} 13... Kf8 {[%clk 0:02:39.8]} 14. Nd4 {[%clk
0:02:07.6]} 14... Rc8 {[%clk 0:02:33.3]} 15. Bd3 {[%clk 0:01:31.2]} 15... exd5
{[%clk 0:01:48.8]} 16. Qf3 {[%clk 0:00:49.8]} 16... Ng6 {[%clk 0:01:45.7]} 17.
Bxg6 {[%clk 0:00:48.7]} 17... fxg6 {[%clk 0:01:45.2]} 18. cxd5 {[%clk
0:00:32.8]} 18... Rc5 {[%clk 0:01:37.4]} 19. Rfe1 {[%clk 0:00:32.1]} 19... Bxd5
{[%clk 0:01:26.2]} 20. Qg3 {[%clk 0:00:33.2]} 20... Kf7 {[%clk 0:01:27.3]} 21.
Rad1 {[%clk 0:00:25.2]} 21... Re8 {[%clk 0:01:26.3]} 22. Rxe8 {[%clk 0:00:18.5]}
22... Qxe8 {[%clk 0:01:27.6]} 23. c4 {[%clk 0:00:17.6]} 23... Bxc4 {[%clk
0:01:17.6]} 24. Qf4 {[%clk 0:00:16.1]} 24... Kg7 {[%clk 0:00:59.7]} 25. h4
{[%clk 0:00:16]} 25... Qe5 {[%clk 0:00:57]} 26. Qd2 {[%clk 0:00:15.7]} 26... Rd5
{[%clk 0:00:46.4]} 27. Qc3 {[%clk 0:00:16.8]} 27... b5 {[%clk 0:00:46.8]} 28.
Rd2 {[%clk 0:00:15]} 28... a5 {[%clk 0:00:39.4]} 29. a4 {[%clk 0:00:14.9]} 29...
Qe1+ {[%clk 0:00:20.4]} 30. Kh2 {[%clk 0:00:15.8]} 30... Qe4 {[%clk 0:00:21.6]}
31. Nf3 {[%clk 0:00:14.6]} 31... Rxd2 {[%clk 0:00:20.3]} 32. Qxd2 {[%clk
0:00:16.5]} 32... Qd5 {[%clk 0:00:20]} 33. Qxa5 {[%clk 0:00:16.8]} 33... bxa4
{[%clk 0:00:21.1]} 34. Qxa4 {[%clk 0:00:18.2]} 34... g5 {[%clk 0:00:22.4]} 35.
hxg5 {[%clk 0:00:18.2]} 35... hxg5 {[%clk 0:00:24.3]} 36. Qb4 {[%clk 0:00:17.6]}
36... d6 {[%clk 0:00:25.3]} 37. Qb8 {[%clk 0:00:18.3]} 37... Qc5 {[%clk
0:00:19.5]} 38. Qb7+ {[%clk 0:00:18.6]} 38... Bf7 {[%clk 0:00:21]} 39. Kg1
{[%clk 0:00:18]} 39... Qc1+ {[%clk 0:00:21.6]} 40. Kh2 {[%clk 0:00:19.3]} 40...
Qf4+ {[%clk 0:00:23.1]} 41. Kg1 {[%clk 0:00:20.8]} 41... d5 {[%clk 0:00:20.3]}
42. Qb6 {[%clk 0:00:19.9]} 42... Qc1+ {[%clk 0:00:21.1]} 43. Kh2 {[%clk
0:00:21]} 43... Qf4+ {[%clk 0:00:21.4]} 44. Kg1 {[%clk 0:00:22.2]} 44... Kg6
{[%clk 0:00:22.6]} 45. Nd4 {[%clk 0:00:22.9]} 45... Qe4 {[%clk 0:00:22.9]} 46.
Qc5 {[%clk 0:00:23.6]} 46... Qe1+ {[%clk 0:00:18.9]} 47. Kh2 {[%clk 0:00:23.2]}
47... Qxf2 {[%clk 0:00:20.1]} 48. Qc3 {[%clk 0:00:23.5]} 48... Qf4+ {[%clk
0:00:20.7]} 49. Kg1 {[%clk 0:00:24.4]} 49... Qe4 {[%clk 0:00:21.7]} 50. Nf3
{[%clk 0:00:24.8]} 50... g4 {[%clk 0:00:20.3]} 51. Nh4+ {[%clk 0:00:25.5]} 51...
Kg5 {[%clk 0:00:21]} 52. g3 {[%clk 0:00:26.9]} 52... d4 {[%clk 0:00:20.7]} 53.
Qc5+ {[%clk 0:00:27.4]} 53... Bd5 {[%clk 0:00:21.6]} 54. Qf8 {[%clk 0:00:25.3]}
54... Qe1+ {[%clk 0:00:22.2]} 0-1